fUST/lending_fUST_20250727
["ID","MTS","AMOUNT","RATE_DAILY","PERIOD"]
[375264088,1753605045290,-1759.62,0.00019726,2]
[375264089,1753605045300,-460.0,0.00019726,2]
[375264090,1753605045310,-1904.69,0.00019726,2]
[375264091,1753605045321,-460.0,0.00019726,2]
[375264092,1753605045330,-544.57,0.00019726,2]
[375264093,1753605045340,-422.99711486,0.00019726,2]
[375264094,1753605045350,-460.0,0.00019726,2]
[375264095,1753605045360,-460.0,0.00019726,2]
[375264096,1753605045370,-570.5,0.00019726,2]
[375264097,1753605045379,-908.14,0.00019726,2]
[375264098,1753605045388,-586.54,0.00019726,2]
[375264099,1753605045398,-462.89009495,0.00019726,2]
[375264100,1753605045408,-507.43,0.00019726,2]
[375264101,1753605045417,-460.0,0.00019726,2]
[375264102,1753605045427,-460.0,0.00019726,2]
[375264103,1753605045437,-460.0,0.00019726,2]
[375264104,1753605045446,-460.0,0.00019726,2]
[375264105,1753605045455,-460.0,0.00019726,2]
[375264106,1753605045466,-460.0,0.00019726,2]
[375264107,1753605045479,-869.6,0.00019726,2]
[375264108,1753605045489,-499.24,0.00019726,2]
[375264109,1753605045498,-460.0,0.00019726,2]
[375264110,1753605045508,-460.0,0.00019726,2]
[375264112,1753605045517,-803.39,0.00019726,2]
[375264113,1753605045527,-460.0,0.00019726,2]
[375264114,1753605045536,-460.0,0.00019726,2]
[375264115,1753605045545,-460.0,0.00019726,2]
[375264116,1753605045557,-645.17,0.00019726,2]
[375264117,1753605045566,-500.72271446,0.00019773,2]
[375264118,1753605045576,-503.34196874,0.00019773,2]
[375264119,1753605045586,-500.0,0.00019773,2]
[375264120,1753605045595,-500.0,0.00019773,2]
[375264121,1753605045605,-500.0,0.00019773,2]
[375264122,1753605045614,-160.0,0.00019853,2]
[375264123,1753605045626,-160.0,0.00019853,2]
[375264124,1753605045635,-160.0,0.00019853,2]
[375264125,1753605045645,-160.0,0.00019853,2]
[375264126,1753605045654,-216.01841554,0.00019853,2]
[375264127,1753605045663,-840.75038169,0.00019853,2]
[375264128,1753605045673,-477.07289566,0.00019857,2]
[375264130,1753605045682,-231.30466539,0.00019857,2]
[375264131,1753605045692,-12632.25855046,0.00019857,2]
[375264132,1753605045701,-160.0,0.00019857,2]
[375264133,1753605045710,-1174.02025984,0.00019889,2]
[375264134,1753605045720,-600.05064882,0.00019922,2]
[375264135,1753605045729,-4931.09,0.0002,2]
[375264136,1753605045739,-460.0,0.0002,2]
[375264137,1753605045748,-460.0,0.0002,2]
[375264138,1753605045758,-460.0,0.0002,2]
[375264139,1753605045767,-1302.22,0.0002,2]
[375264140,1753605045777,-460.0,0.0002,2]
[375264141,1753605045787,-460.0,0.0002,2]
[375264142,1753605045796,-460.0,0.0002,2]
[375264143,1753605045806,-460.0,0.0002,2]
[375264144,1753605045818,-460.0,0.0002,2]
[375264145,1753605045827,-1673.53,0.0002,2]
[375264146,1753605045838,-460.0,0.0002,2]
[375264147,1753605045847,-460.0,0.0002,2]
[375264148,1753605045857,-460.0,0.0002,2]
[375264149,1753605045866,-460.0,0.0002,2]
[375264150,1753605045876,-202.76372487,0.0002,2]
[375264151,1753605045886,-460.0,0.0002,2]
[375264152,1753605045895,-460.0,0.0002,2]
[375264153,1753605045904,-460.0,0.0002,2]
[375264154,1753605045914,-460.0,0.0002,2]
[375264155,1753605045923,-460.0,0.0002,2]
[375264156,1753605045932,-460.0,0.0002,2]
[375264157,1753605045942,-2100.68,0.0002,2]
[375264158,1753605045952,-460.0,0.0002,2]
[375264159,1753605045961,-708.32,0.0002,2]
[375264160,1753605045971,-460.0,0.0002,2]
[375264161,1753605045980,-460.0,0.0002,2]
[375264162,1753605045990,-460.0,0.0002,2]
[375264163,1753605045999,-340.35989141,0.0002,2]
[375264164,1753605046009,-460.0,0.0002,2]
[375264165,1753605046018,-460.0,0.0002,2]
[375264166,1753605046027,-1993.88,0.0002,2]
[375264167,1753605046036,-1910.8,0.0002,2]
[375264168,1753605046045,-460.0,0.0002,2]
[375264169,1753605046055,-460.0,0.0002,2]
[375264170,1753605046064,-460.0,0.0002,2]
[375264171,1753605046074,-460.0,0.0002,2]
[375264172,1753605046083,-460.0,0.0002,2]
[375264173,1753605046093,-460.0,0.0002,2]
[375264174,1753605046103,-460.0,0.0002,2]
[375264175,1753605046112,-460.0,0.0002,2]
[375264176,1753605046124,-460.0,0.0002,2]
[375264177,1753605046133,-460.0,0.0002,2]
[375264178,1753605046143,-89.12473483,0.0002,2]
[375264179,1753605046172,-370.87526517,0.0002,2]
[375264180,1753605046182,-461.54,0.0002,2]
[375264181,1753605046191,-460.0,0.0002,2]
[375264182,1753605046201,-460.0,0.0002,2]
[375264183,1753605046210,-460.0,0.0002,2]
[375264184,1753605046219,-460.0,0.0002,2]
[375264185,1753605046228,-367.72830735,0.0002,2]
[375264186,1753605046240,-92.27169265,0.0002,2]
[375264187,1753605046249,-460.0,0.0002,2]
[375264188,1753605046258,-460.0,0.0002,2]
[375264189,1753605046267,-460.0,0.0002,2]
[375264190,1753605046357,-460.0,0.0002,2]
[375264191,1753605046367,-460.0,0.0002,2]
[375264192,1753605046377,-460.0,0.0002,2]
[375264193,1753605046387,-460.0,0.0002,2]
[375264194,1753605046397,-460.0,0.0002,2]
[375264195,1753605046407,-460.0,0.0002,2]
[375264196,1753605046416,-460.0,0.0002,2]
[375264197,1753605046425,-460.0,0.0002,2]
[375264198,1753605046434,-460.0,0.0002,2]
[375264199,1753605046443,-460.0,0.0002,2]
[375264200,1753605046452,-173.6173972,0.0002,2]
[375264201,1753605046461,-460.0,0.0002,2]
[375264202,1753605046472,-151.818332,0.0002,2]
[375264203,1753605046482,-460.0,0.0002,2]
[375264204,1753605046491,-460.0,0.0002,2]
[375264205,1753605046500,-460.0,0.0002,2]
[375264206,1753605046511,-460.0,0.0002,2]
[375264207,1753605046520,-460.0,0.0002,2]
[375264208,1753605046530,-460.0,0.0002,2]
[375264209,1753605046539,-460.0,0.0002,2]
[375264210,1753605046549,-1664.55,0.0002,2]
[375264211,1753605046558,-460.0,0.0002,2]
[375264212,1753605046568,-460.0,0.0002,2]
[375264213,1753605046577,-460.0,0.0002,2]
[375264214,1753605046586,-460.0,0.0002,2]
[375264215,1753605046595,-955.24,0.0002,2]
[375264216,1753605046604,-460.0,0.0002,2]
[375264217,1753605046613,-460.0,0.0002,2]
[375264218,1753605046623,-460.0,0.0002,2]
[375264219,1753605046632,-460.0,0.0002,2]
[375264220,1753605046642,-460.0,0.0002,2]
[375264221,1753605046651,-460.0,0.0002,2]
[375264222,1753605046661,-460.0,0.0002,2]
[375264223,1753605046670,-460.0,0.0002,2]
[375264224,1753605046679,-151.0,0.0002,2]
[375264225,1753605046689,-460.0,0.0002,2]
[375264226,1753605046699,-151.0,0.0002,2]
[375264227,1753605046708,-460.0,0.0002,2]
[375264228,1753605046717,-466.04290391,0.0002,2]
[375264229,1753605046727,-460.0,0.0002,2]
[375264230,1753605046736,-858.02,0.0002,2]
[375264231,1753605046745,-460.0,0.0002,2]
[375264232,1753605046755,-245.36988716,0.0002,2]
[375264233,1753605046764,-464.56,0.0002,2]
[375264234,1753605046774,-460.0,0.0002,2]
[375264235,1753605046783,-460.0,0.0002,2]
[375264236,1753605046793,-460.0,0.0002,2]
[375264237,1753605046803,-460.0,0.0002,2]
[375264238,1753605046812,-420.05009567,0.0002,2]
[375264239,1753605046822,-151.0,0.0002,2]
[375264240,1753605046831,-460.0,0.0002,2]
[375264241,1753605046841,-460.0,0.0002,2]
[375264242,1753605046850,-460.0,0.0002,2]
[375264243,1753605046859,-460.0,0.0002,2]
[375264244,1753605046869,-460.0,0.0002,2]
[375264245,1753605046879,-460.0,0.0002,2]
[375264246,1753605046889,-151.0,0.0002,2]
[375264247,1753605046898,-990.92,0.0002,2]
[375264248,1753605046907,-460.0,0.0002,2]
[375264249,1753605046916,-460.0,0.0002,2]
[375264250,1753605046926,-460.0,0.0002,2]
[375264251,1753605046936,-460.0,0.0002,2]
[375264252,1753605046946,-460.0,0.0002,2]
[375264253,1753605046955,-460.0,0.0002,2]
[375264254,1753605046965,-460.0,0.0002,2]
[375264255,1753605046974,-322.8552139,0.0002,2]
[375264256,1753605046984,-460.0,0.0002,2]
[375264257,1753605046993,-295.845847,0.0002,2]
[375264258,1753605047002,-295.845847,0.0002,2]
[375264259,1753605047011,-460.0,0.0002,2]
[375264260,1753605047022,-460.0,0.0002,2]
[375264261,1753605047031,-460.0,0.0002,2]
[375264262,1753605047040,-460.0,0.0002,2]
[375264263,1753605047049,-460.0,0.0002,2]
[375264264,1753605047059,-151.0,0.0002,2]
[375264265,1753605047068,-460.0,0.0002,2]
[375264266,1753605047078,-460.0,0.0002,2]
[375264267,1753605047087,-460.0,0.0002,2]
[375264268,1753605047097,-460.0,0.0002,2]
[375264269,1753605047107,-460.0,0.0002,2]
[375264270,1753605047116,-154.39640782,0.0002,2]
[375264271,1753605047127,-464.25428869,0.0002,2]
[375264272,1753605047136,-460.0,0.0002,2]
[375264273,1753605047145,-460.0,0.0002,2]
[375264274,1753605047155,-460.0,0.0002,2]
[375264275,1753605047164,-151.0,0.0002,2]
[375264276,1753605047174,-151.0,0.0002,2]
[375264277,1753605047184,-460.0,0.0002,2]
[375264278,1753605047193,-460.0,0.0002,2]
[375264279,1753605047203,-460.0,0.0002,2]
[375264280,1753605047212,-151.0,0.0002,2]
[375264281,1753605047221,-460.0,0.0002,2]
[375264282,1753605047231,-463.89066864,0.0002,2]
[375264283,1753605047240,-460.0,0.0002,2]
[375264284,1753605047249,-460.0,0.0002,2]
[375264285,1753605047258,-630.48,0.0002,2]
[375264286,1753605047267,-487.28586128,0.0002,2]
[375264287,1753605047277,-460.0,0.0002,2]
[375264288,1753605047288,-460.0,0.0002,2]
[375264289,1753605047298,-460.0,0.0002,2]
[375264290,1753605047307,-893.08,0.0002,2]
[375264291,1753605047317,-460.0,0.0002,2]
[375264292,1753605047326,-460.0,0.0002,2]
[375264293,1753605047336,-460.0,0.0002,2]
[375264294,1753605047345,-887.42,0.0002,2]
[375264295,1753605047355,-460.0,0.0002,2]
[375264296,1753605047365,-460.0,0.0002,2]
[375264297,1753605047375,-862.26,0.0002,2]
[375264298,1753605047385,-460.0,0.0002,2]
[375264299,1753605047395,-460.0,0.0002,2]
[375264300,1753605047405,-460.0,0.0002,2]
[375264301,1753605047416,-151.0,0.0002,2]
[375264302,1753605047426,-795.76,0.0002,2]
[375264303,1753605047436,-460.0,0.0002,2]
[375264304,1753605047446,-1003.17,0.0002,2]
[375264305,1753605047455,-460.0,0.0002,2]
[375264306,1753605047465,-460.0,0.0002,2]
[375264307,1753605047479,-460.0,0.0002,2]
[375264308,1753605047489,-151.0,0.0002,2]
[375264309,1753605047498,-466.65355166,0.0002,2]
[375264310,1753605047508,-763.85,0.0002,2]
[375264311,1753605047517,-460.0,0.0002,2]
[375264312,1753605047527,-460.0,0.0002,2]
[375264313,1753605047536,-161.080261,0.0002,2]
[375264314,1753605047546,-2147.2,0.0002,2]
[375264315,1753605047555,-161.080261,0.0002,2]
[375264316,1753605047564,-460.0,0.0002,2]
[375264317,1753605047574,-151.0,0.0002,2]
[375264318,1753605047583,-460.0,0.0002,2]
[375264319,1753605047592,-468.95412678,0.0002,2]
[375264320,1753605047601,-2881.83,0.0002,2]
[375264321,1753605047611,-460.0,0.0002,2]
[375264322,1753605047622,-554.8530633,0.0002,2]
[375264323,1753605047631,-460.0,0.0002,2]
[375264324,1753605047641,-588.22,0.0002,2]
[375264325,1753605047650,-460.0,0.0002,2]
[375264326,1753605047661,-460.0,0.0002,2]
[375264327,1753605047671,-460.0,0.0002,2]
[375264328,1753605047680,-204.96179272,0.0002,2]
[375264329,1753605047690,-585.53,0.0002,2]
[375264330,1753605047700,-460.0,0.0002,2]
[375264331,1753605047709,-508.21,0.0002,2]
[375264332,1753605047719,-460.0,0.0002,2]
[375264333,1753605047728,-460.0,0.0002,2]
[375264334,1753605047738,-460.0,0.0002,2]
[375264335,1753605047747,-353.630336,0.0002,2]
[375264336,1753605047757,-353.630336,0.0002,2]
[375264337,1753605047767,-631.3,0.0002,2]
[375264338,1753605047775,-460.0,0.0002,2]
[375264339,1753605047785,-460.0,0.0002,2]
[375264340,1753605047794,-2322.9,0.0002,2]
[375264341,1753605047803,-460.0,0.0002,2]
[375264342,1753605047812,-460.0,0.0002,2]
[375264343,1753605047822,-460.0,0.0002,2]
[375264344,1753605047831,-151.0,0.0002,2]
[375264345,1753605047840,-4906.93097376,0.0002,2]
[375264346,1753605047849,-151.0,0.0002,2]
[375264347,1753605047858,-698.74,0.0002,2]
[375264348,1753605047868,-460.0,0.0002,2]
[375264349,1753605047879,-4975.63667748,0.0002,2]
[375264350,1753605047888,-151.0,0.0002,2]
[375264351,1753605047898,-427.60188932,0.0002,2]
[375264352,1753605047907,-460.0,0.0002,2]
[375264353,1753605047916,-460.0,0.0002,2]
[375264354,1753605047926,-460.0,0.0002,2]
[375264355,1753605047935,-2409.71,0.0002,2]
[375264356,1753605047944,-151.0,0.0002,2]
[375264357,1753605047954,-1035.4,0.0002,2]
[375264358,1753605047963,-460.0,0.0002,2]
[375264359,1753605047972,-16000.0,0.0002,2]
[375264360,1753605047983,-35879.85667803,0.0002,2]
[375264361,1753605047992,-5110.41,0.0002,2]
[375264362,1753605048080,-151.0,0.0002,2]
[375264363,1753605048090,-460.0,0.0002,2]
[375264364,1753605048100,-460.0,0.0002,2]
[375264365,1753605048110,-28529.00155232,0.0002,2]
[375264366,1753605048119,-20557.13812712,0.0002,2]
[375264367,1753605048132,-460.0,0.0002,2]
[375264368,1753605048142,-460.0,0.0002,2]
[375264369,1753605048152,-460.0,0.0002,2]
[375264370,1753605048162,-1878.94,0.0002,2]
[375264371,1753605048173,-460.0,0.0002,2]
[375264372,1753605048183,-460.0,0.0002,2]
[375264373,1753605048193,-460.0,0.0002,2]
[375264374,1753605048203,-844.24,0.0002,2]
[375264375,1753605048213,-460.0,0.0002,2]
[375264376,1753605048223,-460.0,0.0002,2]
[375264377,1753605048233,-510.90898875,0.0002,2]
[375264378,1753605048242,-460.0,0.0002,2]
[375264379,1753605048252,-460.0,0.0002,2]
[375264380,1753605048262,-460.0,0.0002,2]
[375264381,1753605048271,-460.0,0.0002,2]
[375264382,1753605048281,-460.0,0.0002,2]
[375264383,1753605048291,-1079.53,0.0002,2]
[375264384,1753605048301,-463.20978813,0.0002,2]
[375264385,1753605048310,-460.0,0.0002,2]
[375264386,1753605048320,-460.0,0.0002,2]
[375264387,1753605048330,-210.05512005,0.0002,2]
[375264388,1753605048611,-460.0,0.00019178,2]
[375264389,1753605048624,-587.72653191,0.00019178,2]
[375264390,1753605048634,-396.40346809,0.00019178,2]
[375264391,1753605048722,-85.59367598,0.00019178,2]
[375264392,1753605048732,-220.18473095,0.00019178,2]
[375264393,1753605048742,-460.0,0.00019178,2]
[375264394,1753605048751,-460.0,0.00019178,2]
[375264395,1753605048761,-460.0,0.00019452,2]
[375264396,1753605048771,-460.0,0.00019726,2]
[375264397,1753605048781,-1581.43487995,0.0002,2]
[375264398,1753605048790,-968.2,0.0002,2]
[375264399,1753605048800,-460.0,0.0002,2]
[375264400,1753605048810,-460.0,0.0002,2]
[375264401,1753605048819,-460.0,0.0002,2]
[375264402,1753605048829,-177.753477,0.0002,2]
[375264403,1753605048838,-460.0,0.0002,2]
[375264404,1753605048849,-460.0,0.0002,2]
[375264405,1753605048859,-460.0,0.0002,2]
[375264406,1753605048870,-460.0,0.0002,2]
[375264407,1753605048881,-1759.62,0.0002,2]
[375264408,1753605048891,-1904.69,0.0002,2]
[375264409,1753605048900,-151.0,0.0002,2]
[375264410,1753605048910,-460.0,0.0002,2]
[375264411,1753605048919,-544.57,0.0002,2]
[375264412,1753605048929,-460.0,0.0002,2]
[375264413,1753605048938,-257.01963456,0.0002,2]
[375264414,1753605048948,-570.5,0.0002,2]
[375264415,1753605048957,-151.0,0.0002,2]
[375264416,1753605048967,-908.14,0.0002,2]
[375264417,1753605048977,-586.54,0.0002,2]
[375264418,1753605048986,-507.43,0.0002,2]
[375264419,1753605048995,-448.6738194,0.0002,2]
[375264420,1753605049005,-460.0,0.0002,2]
[375264421,1753605049014,-460.0,0.0002,2]
[375264422,1753605049024,-460.0,0.0002,2]
[375264423,1753605049033,-460.0,0.0002,2]
[375264424,1753605049042,-460.0,0.0002,2]
[375264425,1753605049052,-869.6,0.0002,2]
[375264426,1753605049062,-499.24,0.0002,2]
[375264427,1753605049072,-151.0,0.0002,2]
[375264428,1753605049081,-160.348589,0.0002,2]
[375264429,1753605049091,-460.0,0.0002,2]
[375264430,1753605049101,-460.0,0.0002,2]
[375264431,1753605049111,-160.348589,0.0002,2]
[375264432,1753605049120,-151.0,0.0002,2]
[375264433,1753605049131,-803.39,0.0002,2]
[375264434,1753605049141,-460.0,0.0002,2]
[375264435,1753605049151,-460.0,0.0002,2]
[375264436,1753605049162,-645.17,0.0002,2]
[375264437,1753605049172,-460.0,0.0002,2]
[375264438,1753605049181,-722.79744611,0.00020019,2]
[375264439,1753605049191,-500.0,0.00020021,2]
[375264440,1753605049201,-150.0,0.00020129,2]
[375264441,1753605049210,-1174.02025984,0.00020159,2]
[375264442,1753605049220,-236.668906,0.00020187,2]
[375264443,1753605049230,-151.0,0.000202,3]
[375264444,1753605049240,-1853.90920523,0.00020248,2]
[375264445,1753605049250,-84976.3718894,0.00020259,2]
[375264446,1753605049263,-11700.4811302,0.00020259,2]
[375264447,1753605049432,-421.47202563,0.00019178,2]
[375264448,1753605049444,-38.52797437,0.00019178,2]
[375264449,1753605049454,-292.0750068,0.00019178,2]
[375264450,1753605050135,-167.9249932,0.00019178,2]
[375264451,1753605050145,-15878.37798502,0.00020259,2]
[375264452,1753605050176,-18496.589272,0.00020259,2]
[375264454,1753605141418,150.0,0.00018778,2]
[375264455,1753605195334,2014.2969359,0.000184,2]
[375264456,1753605195356,7985.7030641,0.000184,2]
[375264459,1753605274663,150.0,0.00018783,2]
[375264460,1753605308505,378.71,0.00017,2]
[375264461,1753605344354,220.07,0.00026027,120]
[375264463,1753605559211,150.0,0.00018798,2]
[375264464,1753605632549,150.0,0.00018335,2]
[375264465,1753605635209,182.484937,0.00018321,2]
[375264466,1753605672700,264.221821,0.00013699,2]
[375264468,1753605709716,150.0,0.00018572,2]
[375264469,1753605722944,5000.0,0.0001885,2]
[375264470,1753605731557,558.72208026,0.0001885,2]
[375264471,1753605797477,150.0,0.00018766,2]
[375264472,1753605798100,411.736517,0.00018176,2]
[375264473,1753605807375,4441.27791974,0.0001885,2]
[375264474,1753605880597,27.1436609,0.00018333,2]
[375264475,1753605880620,122.8563391,0.00018333,2]
[375264476,1753605939174,-631.26189113,0.000189,2]
[375264477,1753605939194,-542.0980846,0.00019078,2]
[375264478,1753605939215,-797.63,0.00019168,3]
[375264479,1753605939234,-638.92336139,0.00019171,2]
[375264480,1753605947463,-561.07663861,0.00019171,2]
[375264481,1753605947484,-300.0,0.00019171,2]
[375264482,1753605947504,-300.0,0.00019171,2]
[375264483,1753605947524,-300.0,0.00019171,2]
[375264484,1753605947695,-1200.0,0.00019171,2]
[375264485,1753605947716,-61.54166659,0.00019171,2]
[375264486,1753605957628,150.0,0.00018312,2]
[375264487,1753606027104,-504.94,0.00019168,3]
[375264488,1753606027126,-238.45833341,0.00019171,2]
[375264489,1753606027147,-1200.0,0.00019172,2]
[375264490,1753606027169,-300.0,0.00019172,2]
[375264491,1753606027190,-451.01908089,0.00019173,2]
[375264492,1753606032975,150.0,0.00018358,2]
[375264493,1753606054083,-48.98091911,0.00019173,2]
[375264494,1753606054105,-130.49151741,0.00019173,2]
[375264495,1753606108151,150.0,0.00018319,2]
[375264496,1753606180703,150.0,0.00018405,2]
[375264520,1753606231924,-420.84126076,0.000189,2]
[375264521,1753606231935,-454.9658173,0.00019061,2]
[375264523,1753606231946,-474.33582406,0.00019078,2]
[375264525,1753606231956,-631.42553644,0.00019078,2]
[375264527,1753606231964,-300.0,0.00019172,2]
[375264529,1753606231974,-300.0,0.00019172,2]
[375264531,1753606231983,-300.0,0.00019172,2]
[375264534,1753606231993,-1200.0,0.00019172,2]
[375264536,1753606232003,-369.50848259,0.00019173,2]
[375264538,1753606232012,-532.93088371,0.00019173,2]
[375264540,1753606232021,-500.0,0.00019173,2]
[375264541,1753606232031,-359.48164609,0.00019173,2]
[375264545,1753606232044,-141.45402901,0.00019173,2]
[375264547,1753606232055,-500.35414614,0.00019173,2]
[375264549,1753606232064,-501.63281376,0.00019173,2]
[375264552,1753606232074,-1476.19149714,0.00019173,2]
[375264555,1753606232084,-500.0,0.00019173,2]
[375264556,1753606232093,-510.47023454,0.00019173,2]
[375264558,1753606232104,-500.0,0.00019173,2]
[375264560,1753606232113,-500.0,0.00019173,2]
[375264561,1753606232124,-500.0,0.00019173,2]
[375264563,1753606232135,-582.21519902,0.00019173,2]
[375264565,1753606232146,-158.938,0.00019177,2]
[375264567,1753606232158,-500.0,0.00019177,2]
[375264569,1753606232168,-500.0,0.00019177,2]
[375264570,1753606232177,-500.0,0.00019177,2]
[375264572,1753606232187,-500.0,0.00019177,2]
[375264574,1753606232196,-500.0,0.00019177,2]
[375264576,1753606232205,-192.74194872,0.00019177,2]
[375264578,1753606232215,-500.0,0.00019177,2]
[375264580,1753606232224,-562.49911313,0.00019177,2]
[375264582,1753606232234,-500.0,0.00019177,2]
[375264584,1753606232243,-500.0,0.00019177,2]
[375264586,1753606232253,-500.0,0.00019177,2]
[375264588,1753606232262,-382.33402634,0.00019177,2]
[375264590,1753606232272,-224.52187254,0.00019177,2]
[375264591,1753606232281,-275.47812746,0.00019177,2]
[375264592,1753606232291,-359.75344919,0.00019177,2]
[375264593,1753606232300,-619.20907405,0.00019177,2]
[375264594,1753606232310,-389.56767258,0.00019177,2]
[375264595,1753606232320,-199.3499585,0.00019177,2]
[375264596,1753606232330,-500.0,0.00019177,2]
[375264597,1753606232340,-161.59073976,0.00019177,2]
[375264598,1753606232350,-186.04413217,0.00019177,2]
[375264599,1753606232359,-301.91240137,0.00019177,2]
[375264600,1753606232369,-373.63346147,0.00019177,2]
[375264601,1753606232378,-500.0,0.00019177,2]
[375264602,1753606232388,-300.0,0.00019177,2]
[375264603,1753606232398,-300.0,0.00019177,2]
[375264604,1753606232408,-500.0,0.00019177,2]
[375264605,1753606232417,-166.04037222,0.00019177,2]
[375264606,1753606232427,-475.55680633,0.00019177,2]
[375264610,1753606232586,-582.69560746,0.00019177,2]
[375264612,1753606232600,-329.07869915,0.00019178,2]
[375264614,1753606232611,-541.9623873,0.00019178,2]
[375264616,1753606232622,-460.0,0.00019178,2]
[375264618,1753606232637,-4197.09,0.00019178,2]
[375264620,1753606232650,-460.0,0.00019178,2]
[375264622,1753606232661,-460.0,0.00019178,2]
[375264624,1753606232673,-460.0,0.00019178,2]
[375264626,1753606232683,-460.0,0.00019178,2]
[375264628,1753606232694,-460.0,0.00019178,2]
[375264629,1753606232705,-460.0,0.00019178,2]
[375264630,1753606232717,-460.0,0.00019178,2]
[375264631,1753606232728,-460.0,0.00019178,2]
[375264632,1753606232738,-460.0,0.00019178,2]
[375264633,1753606232749,-1626.39,0.00019178,2]
[375264634,1753606232759,-460.0,0.00019178,2]
[375264635,1753606232769,-460.0,0.00019178,2]
[375264636,1753606232779,-461.21997159,0.00019178,2]
[375264637,1753606232788,-460.0,0.00019178,2]
[375264638,1753606232798,-460.0,0.00019178,2]
[375264639,1753606232808,-460.0,0.00019178,2]
[375264640,1753606232818,-460.0,0.00019178,2]
[375264641,1753606232828,-460.0,0.00019178,2]
[375264642,1753606232839,-460.0,0.00019178,2]
[375264643,1753606232848,-460.0,0.00019178,2]
[375264644,1753606232858,-460.0,0.00019178,2]
[375264645,1753606232868,-532.88261475,0.00019178,2]
[375264646,1753606232881,-460.0,0.00019178,2]
[375264647,1753606232890,-460.0,0.00019178,2]
[375264648,1753606232899,-460.0,0.00019178,2]
[375264649,1753606232909,-460.0,0.00019178,2]
[375264650,1753606232918,-465.54516556,0.00019178,2]
[375264651,1753606232928,-460.0,0.00019178,2]
[375264652,1753606232938,-460.0,0.00019178,2]
[375264653,1753606232948,-460.0,0.00019178,2]
[375264654,1753606232958,-460.0,0.00019178,2]
[375264655,1753606232968,-460.0,0.00019178,2]
[375264656,1753606232977,-460.0,0.00019178,2]
[375264657,1753606232987,-460.0,0.00019178,2]
[375264658,1753606232996,-460.0,0.00019178,2]
[375264659,1753606233007,-460.0,0.00019178,2]
[375264660,1753606233016,-460.0,0.00019178,2]
[375264661,1753606233026,-460.0,0.00019178,2]
[375264662,1753606233036,-460.0,0.00019178,2]
[375264663,1753606233046,-460.0,0.00019178,2]
[375264664,1753606233057,-460.0,0.00019178,2]